Cogmind - Beta 16 --- EXPLORER MODE // 2025.12.08 @ 13:41:12 Player: K.K.Y. Result: Destroyed by 8O-AGG(R) with Subdweller Laser Performance ------------- Evolutions (0) 0 Regions Visited (3) 600 Robots Destroyed (25) 125 Value Destroyed (447) 447 Prototype IDs (12) 240 Alien Tech Used (0) 0 Bonus (0) 0 TOTAL SCORE: 1412 Bonus ------- None Cogmind --------- Core Integrity 0/250 Matter 290/300 Energy 40/100 System Corruption 0% Temperature Cool (6) Movement Core (100) Ox1 Location -10/Subcaves Parts ------- > --- POWER (1) -------- (None) > --- PROPULSION (2) --- (None) > --- UTILITY (3) ------ Targeting Computer > --- WEAPON (2) ------- Subdweller Laser > --- INVENTORY (5) ---- Improved Ion Engine Improved Terrain Scanner Datajack Peak State ------------ > --- POWER ------------ Light Ion Engine > --- PROPULSION ------- Flight Unit Flight Unit > --- UTILITY ---------- Structural Scanner Targeting Computer Targeting Computer > --- WEAPON ----------- EM Shotgun Heavy Riot Gun > --- INVENTORY -------- Flight Unit Improved Terrain Scanner EM Shotgun Datajack Mining Laser [Rating: 12] Favorites ----------- Power Light Ion Engine Engine Light Ion Engine Propulsion Flight Unit Leg Aluminum Leg Wheel Wheel Flight Unit Flight Unit Utility Targeting Computer Device Structural Scanner Processor Targeting Computer Weapon EM Shotgun Energy Gun EM Shotgun Ballistic Cannon Light Cannon Special Weapon Mining Laser Build | -11 -10 -10 -10 ------- Run | Yrd Mat Min Sub Slots Evolved 1 | . 1 . . Power . | . . . . Propulsion . | . . . . Utility 1 | . 1 . . Weapon . | . . . . Parts Attached 26 | 9 11 2 4 Power 3 | 1 1 1 . Engine 3 | 1 1 1 . Core . | . . . . Reactor . | . . . . Propulsion 10 | 4 4 1 1 Treads . | . . . . Leg 2 | 2 . . . Wheel 4 | 2 2 . . Hover . | . . . . Flight 4 | . 2 1 1 Utility 3 | 2 1 . . Device 1 | . 1 . . Storage . | . . . . Processor 2 | 2 . . . Hackware . | . . . . Protection . | . . . . Artifact . | . . . . Weapon 10 | 2 5 . 3 Energy Gun 7 | 2 2 . 3 Energy Cannon . | . . . . Ballistic Gun . | . . . . Ballistic Cannon 2 | . 2 . . Launcher . | . . . . Special Weapon 1 | . 1 . . Impact Weapon . | . . . . Slashing Weapon . | . . . . Piercing Weapon . | . . . . Special Melee Weapon . | . . . . Unidentified Prototypes . | . . . . Parts Lost 11 | . 1 . 10 Power 1 | . . . 1 Propulsion 3 | . . . 3 Utility 2 | . . . 2 Weapon 5 | . 1 . 4 Highest Loss Streak 5 | . 1 . 5 To Critical Strikes . | . . . . Average Backups 3 | . 3 4 3 Power . | . . . . Propulsion . | . . . . Utility . | . 1 1 1 Weapon 1 | . 1 1 1 Tool/Special . | . . . . Unused Backups 5 | 1 1 . 3 Power 1 | . . . 1 Propulsion . | . . . . Utility 1 | . . . 1 Weapon 2 | 1 1 . . Tool/Special 1 | . . . 1 Average Slot Usage (%) 85 | . 92 92 77 Engine 10 | . 12 12 8 Wheel 7 | . 18 . . Flight 15 | . 6 25 20 Device 9 | . 10 12 7 Processor 24 | . 25 25 23 Energy Gun 14 | . 15 17 11 Ballistic Cannon 1 | . 3 . . Special Weapon 2 | . . . 4 Peak Build Rating 12 | 7 10 10 12 Average Rating 7 | 6 7 8 8 On Entrance 6 | . 7 10 8 Avg Prop Armor Cover (%) . | . . . . Naked Turns . | . . . . Heaviest Build 12 | 7 12 12 9 Greatest Support 20 | 20 20 8 8 Greatest Overweight (x) 2 | 2 1 1 1 Average Overweight (x) . | . . . . Largest Inventory Capacity 5 | 5 5 5 5 Average Capacity 5 | 5 5 5 5 Most Carried 5 | 4 5 5 5 Average Carried 3 | 1 3 4 3 Final Capacity 5 | 5 5 5 5 Final Carried 5 | 2 3 5 3 Class Distribution -------------------- 100% | Hacker-Mutant Dominant Class ---------------- Hacker-Mutant | -10/Materials Hacker-Mutant | -10/Mines Hacker-Mutant | -10/Subcaves Resources | -11 -10 -10 -10 ----------- Run | Yrd Mat Min Sub Matter Collected 480 | 290 83 87 20 Remotely . | . . . . Salvage Created 688 | 186 204 33 265 Parts 56 | 13 29 6 8 Haulers Intercepted 1 | . 1 . . Recyclers Shooed 2 | 1 1 . . Parts Field Recycled . | . . . . Retrieved Matter . | . . . . Parts Self-Destructed . | . . . . Prevented . | . . . . Parts Restored . | . . . . Kills | -11 -10 -10 -10 ------- Run | Yrd Mat Min Sub Combat Hostiles Destroyed 14 | . 6 2 6 Guns 13 | . 6 2 5 Classes Destroyed 9 | 2 5 . 2 Worker 2 | . 2 . . Builder 1 | . 1 . . Tunneler 5 | 5 . . . Hauler 1 | . 1 . . Recycler 1 | 1 . . . Watcher 1 | . 1 . . Swarmer 8 | . 6 2 . Grunt 2 | . . . 2 Subdweller 4 | . . . 4 Best Kill Streak 6 | 6 5 2 2 Combat Bots Only 3 | . 3 2 2 Max Kills in Single Turn 2 | 2 2 2 1 Gunslinging 1 | . 1 . . Exploded . | . . . . Melee . | . . . . Uniques/NPCs Destroyed . | . . . . Combat | -11 -10 -10 -10 -------- Run | Yrd Mat Min Sub Hostile Shots Fired 91 | . 27 2 62 Missed 30 | . 8 . 22 Hits 61 | . 19 2 40 Projectile 61 | . 19 2 40 AOE 2 | . . . 2 Critical Strikes 1 | . 1 . . Damage Taken 776 | 16 158 8 594 Core 254 | 16 13 . 225 Absorbed by Shields . | . . . . Ignored by Resistances 471 | 9 101 6 355 Core Remaining (%) 93 | 93 . . . Volleys Fired 108 | 9 33 2 64 Largest 2 | 2 2 2 2 Hottest 160 | 90 90 90 160 Shots Fired 137 | 18 38 4 77 Gun 124 | 18 38 4 64 Cannon . | . . . . Launcher . | . . . . Special 13 | . . . 13 Kinetic . | . . . . Thermal 80 | 9 33 . 38 Explosive . | . . . . Electromagnetic 57 | 9 5 4 39 Robot Hit Streak 52 | 7 17 13 52 Robot Miss Streak 2 | 1 1 1 2 Penetration Max . | . . . . Secondary Targets 1 | . 1 . . Max Gunslinging Chain 1 | . 1 . . Shots Hit Robots 101 | 12 33 3 53 Core Hits 38 | 6 13 3 16 Critical Kills . | . . . . Critical Parts Destroyed . | . . . . Critical Strikes 4 | 1 1 . 2 Burn 4 | 1 1 . 2 Melee Attacks . | . . . . Impact . | . . . . Slashing . | . . . . Piercing . | . . . . Sneak Attacks . | . . . . Combat Hostiles . | . . . . Follow-up Attacks . | . . . . Damage Inflicted 1628 | 203 511 48 866 Guns 1393 | 167 384 48 794 Cannons . | . . . . Explosions 163 | 36 127 . . Melee . | . . . . Ramming . | . . . . Kinetic . | . . . . Thermal 883 | 98 351 . 434 Explosive 127 | . 127 . . Electromagnetic 618 | 105 33 48 432 Impact . | . . . . Slashing . | . . . . Piercing . | . . . . Highest Corruption . | . . . . Average Corruption . | . . . . Corruption Purged . | . . . . Corruption Blocked . | . . . . Overload Shots . | . . . . Overflow Damage 33 | . 33 . . Projectiles . | . . . . Explosions 33 | . 33 . . Melee . | . . . . Knockbacks . | . . . . Impact . | . . . . Kinetic . | . . . . Secondary . | . . . . Self-Inflicted Damage 81 | 16 65 . . Shots 2 | 1 1 . . Rammed . | . . . . Targets Rammed . | . . . . Kicked . | . . . . Crushed . | . . . . Highest Temperature 142 | 142 90 72 3 Average Temperature 39 | 60 30 37 3 Received Heat Transfer 255 | . . . 255 Siege Activations . | . . . . Martial Activations . | . . . . Shielding Activations . | . . . . Robots Disrupted . | . . . . Combat Hostiles . | . . . . Robots Corrupted 1 | . . . 1 Combat Hostiles 1 | . . . 1 Parts Fried . | . . . . Impact Corruptions . | . . . . Robots Melted . | . . . . Combat Hostiles . | . . . . Parts Melted 3 | . 2 . 1 Heat Transferred 2470 | 259 1110 . 1101 Parts Sabotaged . | . . . . Parts Stolen . | . . . . Parts Stripped . | . . . . Power Chain Reactions 1 | 1 . . . Alert | -11 -10 -10 -10 ------- Run | Yrd Mat Min Sub Maximum Alert Level . | . . . . Low Security (%) 100 | 100 100 100 . Level 1 . | . . . . Level 2 . | . . . . Level 3 . | . . . . Level 4 . | . . . . Level 5 . | . . . . High Security . | . . . . Max Security . | . . . . Peak Influence 129 | 15 129 50 . Initial . | . . . . Average 24 | 2 33 8 . Influence Increases 363 | 30 233 50 50 Destroy 0b10 Robot/C 200 | . 120 40 40 Destroy 0b10 Robot/NC 55 | 30 25 . . Destroy Leader 54 | . 34 10 10 Disable Machine 24 | . 24 . . Destroy Structure 15 | . 15 . . Lose Combat Pursuer 15 | . 15 . . Influence Decreases 363 | 30 233 50 50 Time Decay 353 | 30 223 50 50 Lost Part 10 | . 10 . . Squads Dispatched . | . . . . Investigation . | . . . . Extermination . | . . . . Reinforcement . | . . . . Assault . | . . . . Garrison . | . . . . Intercept . | . . . . Searches Triggered . | . . . . Construction Impeded . | . . . . Haulers Reinforced . | . . . . Active Scanning Responses . | . . . . Cargo Convoy Interrupts . | . . . . Stealth | -11 -10 -10 -10 --------- Run | Yrd Mat Min Sub Distress Signals . | . . . . Communications Jammed . | . . . . Distress Signals . | . . . . Times Spotted 24 | . 12 2 10 Peak Tracking Total 3 | . 3 2 2 Tactical Retreats 3 | . 1 . 2 Traps | -11 -10 -10 -10 ------- Run | Yrd Mat Min Sub Traps Triggered 1 | . 1 . . Indirectly . | . . . . Trap Hack Attempts . | . . . . Triggered . | . . . . Disarmed . | . . . . Reprogrammed . | . . . . Reused . | . . . . Traps Extracted . | . . . . Installed . | . . . . Triggered . | . . . . Machines | -11 -10 -10 -10 ---------- Run | Yrd Mat Min Sub Machines Disabled 6 | . 6 . . Max in Single Turn 3 | . 3 . . Machines Repaired . | . . . . Machines Dismantled . | . . . . Machines Sabotaged . | . . . . Overloaded Fab Kills . | . . . . Hacking | -11 -10 -10 -10 --------- Run | Yrd Mat Min Sub Machines Accessed 2 | . 1 . 1 Terminals 1 | . 1 . . Fabricators . | . . . . Repair Stations . | . . . . Recycling Units . | . . . . Scanalyzers . | . . . . Garrison Access . | . . . . Total Hacks 2 | . 1 . 1 Successful 2 | . 1 . 1 Failed . | . . . . Catastrophic . | . . . . Database Lockouts . | . . . . Manual 1 | . 1 . . Terminals 1 | . 1 . . Fabricators . | . . . . Repair Stations . | . . . . Recycling Units . | . . . . Scanalyzers . | . . . . Garrison Access . | . . . . Terminal Hacks 1 | . . . 1 Proto ID Catalog 1 | . . . 1 Fabricator Hacks . | . . . . Repair Station Hacks . | . . . . Recycling Unit Hacks . | . . . . Scanalyzer . | . . . . Garrison Access Hacks . | . . . . Unauthorized Hacks 1 | . 1 . . Terminals 1 | . 1 . . Botnet 1 | . 1 . . Fabricators . | . . . . Repair Stations . | . . . . Recycling Units . | . . . . Scanalyzers . | . . . . Garrison Access . | . . . . Data Cores Recovered . | . . . . Used . | . . . . Hacking Detections 1 | . 1 . . Full Trace Events . | . . . . Feedback Events . | . . . . Feedback Blocked . | . . . . Robot Schematics Acquired . | . . . . Robots Built . | . . . . Authchips . | . . . . Time . | . . . . Total Robot Build Rating . | . . . . Part Schematics Acquired . | . . . . Parts Built . | . . . . Authchips . | . . . . Time . | . . . . Total Part Build Rating . | . . . . Part Studies Acquired . | . . . . Parts Repaired . | . . . . Time . | . . . . Parts Recycled . | . . . . Recycled Matter . | . . . . Retrieved Matter . | . . . . Retrieved Components . | . . . . Parts Scanalyzed . | . . . . Part Schematics Acquired . | . . . . Parts Damaged . | . . . . Bothacking | -11 -10 -10 -10 ------------ Run | Yrd Mat Min Sub Used RIF Installer . | . . . . Robots Hacked . | . . . . Non-combat . | . . . . Combat . | . . . . Robot Hacks Applied . | . . . . Relay Couplers Released . | . . . . Fabnet Peak Effective % . | . . . . Robots Rewired . | . . . . Allies Hacked . | . . . . Hacks Repelled . | . . . . Allies | -11 -10 -10 -10 -------- Run | Yrd Mat Min Sub Total Allies . | . . . . Largest Group . | . . . . Highest-Rated Group . | . . . . Highest-Rated Ally . | . . . . Total Orders . | . . . . Ally Attacks . | . . . . Total Damage . | . . . . Kills . | . . . . Allies Corrupted . | . . . . Allies Melted . | . . . . Intel | -11 -10 -10 -10 ------- Run | Yrd Mat Min Sub Active Infowar (turns) 1081 | . 519 142 420 Structural 1081 | . 519 142 420 Robot Analysis Total . | . . . . Derelict Logs Recovered . | . . . . Drone Launches . | . . . . Drone Recoveries . | . . . . Exploration | -11 -10 -10 -10 ------------- Run | Yrd Mat Min Sub Turns Passed 1505 | 142 581 142 640 Spaces Moved 1448 | 95 544 160 649 Core 137 | 24 . . 113 Treads . | . . . . Legs 48 | 48 . . . Wheels 434 | 23 411 . . Hover . | . . . . Flight 829 | . 133 160 536 Fastest Speed 37 | 50 37 37 37 Average Speed 65 | 96 88 50 46 Slowest Speed 150 | 150 117 117 117 Overloaded Moves . | . . . . Propulsion Burnouts . | . . . . Robots Hopped 2 | . . 1 1 Potential Cave-ins . | . . . . Cave-ins Triggered . | . . . . Exploration Rate (%) 39 | 4 88 23 43 Regions Visited 3 Branch Regions 2 Pre-discovered Areas 1 | . . . 1 Known Exits Taken 3 | 1 1 1 . Unknown Exits Taken . | . . . . Scrap Searched 5 | . . . 5 Spaces Dug . | . . . . Terrain Destroyed 21 | 7 14 . . Melee . | . . . . Projectile . | . . . . AOE 21 | 7 14 . . Terrain Rammed . | . . . . Walls Destroyed . | . . . . Machines Disabled . | . . . . Actions | -11 -10 -10 -10 --------- Run | Yrd Mat Min Sub Total 1842 | 129 610 216 887 Wait 215 | . 5 45 165 Move 1441 | 94 543 157 647 Hop 2 | . . 1 1 Pick Up 24 | 12 6 3 3 Fast Attach 6 | . 5 . 1 Attach 20 | 9 5 1 5 Detach 4 | 2 1 1 . Swap 6 | . 3 3 . Drop 16 | 3 9 3 1 Fire 108 | 9 33 2 64 Melee . | . . . . Ram . | . . . . Kick . | . . . . Crush . | . . . . Escape Stasis . | . . . . Rewire . | . . . . Trap . | . . . . Miscellaneous . | . . . . Route ------- -11/Scrapyard -10/Materials (discovered 4 exits: *Mat x2 / *Min x2) -10/Mines -10/Subcaves (discovered 1 exit: *Mat) History --------- Turn | Location | Event 4 | -11/Scrapyard | Identified exit to Materials 4 | -11/Scrapyard | Discovered exit to Materials (range 16) 143 | -11/Scrapyard | Entered Materials 143 | -10/Materials | Evolved 1 slot: Utility x1 144 | -10/Materials | Identified exit to Mines 144 | -10/Materials | Discovered exit to Mines (range 14) 302 | -10/Materials | Build established: Hacker-Mutant 375 | -10/Materials | Identified exit to Materials 375 | -10/Materials | Discovered exit to Materials (range 15) 407 | -10/Materials | Discovered exit to Mines (range 15) 553 | -10/Materials | Discovered exit to Materials (range 15) 724 | -10/Materials | Entered Mines 850 | -10/Mines | Identified exit to Subcaves 850 | -10/Mines | Discovered exit to Subcaves (range 13) 866 | -10/Mines | Entered Subcaves 867 | -10/Subcaves | Approached by a straggling Scientist 1039 | -10/Subcaves | Visited 4L-MR0's lab 1089 | -10/Subcaves | A swath of the cavern ceiling suddenly collapsed 1113 | -10/Subcaves | Learned location of Zion (-7) 1113 | -10/Subcaves | Met a Zionite searching for "candidates" 1207 | -10/Subcaves | Identified exit to Materials 1207 | -10/Subcaves | Discovered exit to Materials (range 8) 1333 | -10/Subcaves | Lost 4 parts (1p1n1u1w) 1409 | -10/Subcaves | Core integrity fell below 50% 1439 | -10/Subcaves | Core integrity fell below 20% 1447 | -10/Subcaves | Lost 5 parts (2n1u2w) 1495 | -10/Subcaves | Disturbed a concealed Subdweller 1506 | -10/Subcaves | Destroyed by 8O-AGG(R) with Subdweller Laser Last Messages --------------- 01414_ GI-J6X(R) suffers critical hit (Burn). 01416_ Flight Unit destroyed. 01416_ GI-J6X(R) destroyed. 01419_ 5K-VI7(R) misfires. 01420_ Subatomizers dissect the Heat Sink. 01438_ 5K-VI7(R) suffers critical hit (Burn). 01438_ Sub. Monowheel melted. 01438_ 5K-VI7(R) destroyed. 01445_ Acquired Imp. Ion Engine. 01448_ Subatomizers dissect the Heat Sink. 01492_ Searching scrap... 01492_ Found Sub. Power Source. 01492_ Found 37 Matter. 01492_ Searching scrap... 01492_ Found Sub. Laser. 01492_ Found 66 Matter. 01495_ 8O-AGG(R) angrily emerges from the Twisted Machinery. 01495_ Beam Rifle destroyed. 01495_ Acquired Sub. Laser. Map ----- +----------------------------------------------------+ | "### ###########"""##""###"# ## " """" """# | | ### # # ## #"#"##""#"" #### """""" # | | #"##" "" ####"" "" # | | # # ?## " ?#### ## ## | | ## #####?####??? ?? ??####### #### | | #######????####?? ??? ##?######### ##### | | " ####???????## ?? ###?????#########?? | | ##?????????## ???#########????????#####??? | | ##?????????###???########????????????????? | | ##?????????###???????????????????????????? | | ##???????????????????????????????????????? | | # ###???????????????????????????????????????? | | ##########???????????????????????????????????????? | | #########????????????????????????????????????????? | | ?????????????????????????????????????????????????? | | ?????????????????????????????????????????????????? | | ?????????????????????????????????????????????????? | | ?????????????????????????????????????????????????? | | ?????????????????????????????????????????????????? | | ?????????????????????????????????????????????????? | | ?????????????????????????????????????????????????? | | ##??????????????????????????????####?????????????? | | ##??????????????????????######### #########?????# | | ##??????????????????????#<& ##" # ###?##" | | ##??????????????????????#R# #? " | | ##??????????????????????#@##"#" # # ##" " | | ????????????????????????#*%### ## # #" " | | ????????????????????????#<%## """ | | ????????????????????????#### """ | | ??????????????????????????## # # #"" " | | ??????????????????????????# ### #### ###" | | ??????????????????????????# #?## ##?## #??# | | ??????????????????????????# ##??## #??# #?## | | ??????????????????????????####????# #### ### | | ??????????????????????????????????# ## ### | | ??????????????????????????????????# # | | ?????????????????????????????????## ### | | ?????????????????????????????????# ## ##?# | | ?????????????????????????????????# ######??# # | | ?????????????????????????????????# ##???##### # | | ?????????????????????????????????# ##?#### # | | ????????????????????????????????## #?## | | ???????????????????????????????## #### #### | | ???????????????????????????????# ### ##??## | | ???????????????????????????????# ##????## | | ???????????????????????????????# #??????# | | ??????????????????????????????# #????# | | ??????????????????????????? #?? | | ???????????????????????? ## | | ????????????????????? #?# | +----------------------------------------------------+ Best States ------------- Heat Dissipation 25 Energy Generation 10 Energy Capacity 250 Matter Stores 300 Matter Capacity 300 Sight Range 16 Terrain Scan Density 10 Resistance: KI 35 Resistance: TH 35 Resistance: EX 35 Resistance: EM 35 Resistance: I 35 Resistance: S 35 Resistance: P 35 Evasion (%) 62 Targeting Accuracy 10 Offensive Hacking 20 Item Schematics ----------------- None Robot Schematics ------------------ None Fabricated ------------ Nothing Repaired ---------- Nothing Studied --------- None Alien Tech Used ----------------- None Achievements -------------- None Challenges ------------ None Game ------ Seed MicrodissipatorArmoredTorch Manual? 0 Play Time 00:15:30 Cumulative 176.6 hours Start 2025.12.08 @ 13:30:04 End 2025.12.08 @ 13:41:12 Sessions 1 Manual Loads 0 Difficulty Explorer Special Mode None Game No. 248 Rogue 0 Adventurer 0 Explorer 248 Win Type - Total 0 Types 0/0/0/0/0/0/0/0/0/0 Lore% 70 Gallery% 67 Achievement% 53 Wizard Run 0 Options --------- Layout 1 ASCII 0 Keyboard 0 Movement Mouse Keybinds 0 Fullscreen 1 Font 24/Smallcaps Map View 50x35 Zoom Use 0% Tactical HUD 1 Map Filters NONE Filters NONE Steam 1 RUN: dbb3d3c2-9ffe-4df6-bfad-5a611948a101